Cogmind - Beta 15 @@@ ROGUE MODE // 2025.08.04 @ 22:03:48 Player: P9H Result: Destroyed self with Latent Energy Streamer Performance ------------- Evolutions (0) 0 Regions Visited (4) 800 Robots Destroyed (28) 140 Value Destroyed (642) 642 Prototype IDs (23) 460 Alien Tech Used (0) 0 Bonus (300) 300 TOTAL SCORE: 2342 Bonus ------- Aligned with FarCom 300 Cogmind --------- Core Integrity 0/250 Matter 285/300 Energy 90/250 System Corruption 5% Temperature Cool (0) Movement Rolling (110) Ox2 Location -9/Mines Parts ------- > --- POWER (1) -------- Ion Engine > --- PROPULSION (2) --- Wheel Wheel > --- UTILITY (2) ------ High-capacity Storage Unit > --- WEAPON (2) ------- Latent Energy Streamer Light Assault Rifle > --- INVENTORY (20) --- Light Ion Engine Light Ion Engine Light Ion Engine Light Treads Wheel Large Storage Unit Seismic Detector Hacking Suite Medium Laser Small Laser Small Laser Light Assault Rifle Grenade Launcher Grenade Launcher Grenade Launcher Grenade Launcher Rocket Launcher Datajack Mining Claw Peak State ------------ > --- POWER ------------ Light Ion Engine > --- PROPULSION ------- Wheel Wheel > --- UTILITY ---------- Heat Sink High-capacity Storage Unit > --- WEAPON ----------- Latent Energy Streamer Light Assault Rifle > --- INVENTORY -------- Ion Engine Light Ion Engine Light Ion Engine Light Treads Wheel Large Storage Unit Seismic Detector Hacking Suite Medium Laser Small Laser Small Laser Light Assault Rifle Grenade Launcher Grenade Launcher Grenade Launcher Grenade Launcher Rocket Launcher Datajack Datajack Mining Claw [Rating: 18] Favorites ----------- Power Light Ion Engine Engine Light Ion Engine Propulsion Wheel Treads Light Treads Wheel Wheel Utility Heat Sink Device Heat Sink Storage High-capacity Storage Unit Weapon Light Assault Rifle Energy Gun Small Laser Energy Cannon Latent Energy Streamer Ballistic Gun Light Assault Rifle Launcher Grenade Launcher Slashing Weapon Mining Claw Build | -11 -10 -10 -10 -9 ------- Run | Yrd Mat Min Exi Min Slots Evolved . | . . . . . Power . | . . . . . Propulsion . | . . . . . Utility . | . . . . . Weapon . | . . . . . Parts Attached 22 | 4 15 1 2 . Power 3 | 1 1 . 1 . Engine 3 | 1 1 . 1 . Core . | . . . . . Reactor . | . . . . . Propulsion 5 | 1 3 1 . . Treads 1 | 1 . . . . Leg . | . . . . . Wheel 4 | . 3 1 . . Hover . | . . . . . Flight . | . . . . . Utility 4 | 1 3 . . . Device 1 | . 1 . . . Storage 3 | 1 2 . . . Processor . | . . . . . Hackware . | . . . . . Protection . | . . . . . Artifact . | . . . . . Weapon 10 | 1 8 . 1 . Energy Gun 3 | 1 2 . . . Energy Cannon 1 | . . . 1 . Ballistic Gun 2 | . 2 . . . Ballistic Cannon . | . . . . . Launcher 3 | . 3 . . . Special Weapon . | . . . . . Impact Weapon . | . . . . . Slashing Weapon 1 | . 1 . . . Piercing Weapon . | . . . . . Special Melee Weapon . | . . . . . Unidentified Prototypes . | . . . . . Parts Lost 7 | . 6 . . 1 Power 1 | . 1 . . . Propulsion 3 | . 3 . . . Utility 1 | . . . . 1 Weapon 2 | . 2 . . . Highest Loss Streak 2 | . 2 . . 1 To Critical Strikes . | . . . . . Average Backups 11 | 4 9 17 19 . Power 1 | . . 2 3 . Propulsion 2 | 2 2 2 2 . Utility 1 | . 1 3 3 . Weapon 5 | 1 3 7 9 . Tool/Special . | . . . . . Unused Backups 11 | . 1 . 1 9 Power 2 | . . . . 2 Propulsion 2 | . . . . 2 Utility 3 | . 1 . . 2 Weapon 2 | . . . . 2 Tool/Special 2 | . . . 1 1 Average Slot Usage (%) 93 | . 90 94 100 . Engine 14 | . 14 14 14 . Treads 3 | . 4 . . . Wheel 22 | . 20 22 28 . Device 11 | . 9 14 14 . Storage 14 | . 14 14 14 . Energy Gun 10 | . 11 14 5 . Energy Cannon 1 | . . . 8 . Ballistic Gun 9 | . 9 8 14 . Slashing Weapon 3 | . 3 5 . . Peak Build Rating 18 | 4 8 9 18 . Average Rating 8 | 2 6 8 14 . On Entrance 7 | . 4 7 9 18 Naked Turns . | . . . . . Heaviest Build 57 | 9 50 47 57 . Greatest Support 20 | 20 20 20 20 . Greatest Overweight (x) 4 | 1 4 4 2 . Average Overweight (x) 1 | . 1 2 2 . Largest Inventory Capacity 20 | 8 20 20 20 . Average Capacity 15 | 6 13 20 20 . Most Carried 20 | 6 16 19 20 . Average Carried 12 | 5 9 17 19 . Final Capacity 20 | 8 20 20 20 20 Final Carried 19 | 6 16 19 19 19 Class Distribution -------------------- 100% | Mutant Dominant Class ---------------- Mutant | -10/Materials Mutant | -10/Mines Mutant | -10/Exiles Mutant | -9/Mines Resources | -11 -10 -10 -10 -9 ----------- Run | Yrd Mat Min Exi Min Matter Collected 629 | 231 370 28 . . Remotely . | . . . . . Salvage Created 667 | . 455 56 . 156 Parts 45 | . 36 3 . 6 Haulers Intercepted . | . . . . . Recyclers Shooed 2 | . 2 . . . Parts Field Recycled . | . . . . . Retrieved Matter . | . . . . . Parts Self-Destructed . | . . . . . Prevented . | . . . . . Kills | -11 -10 -10 -10 -9 ------- Run | Yrd Mat Min Exi Min Combat Hostiles Destroyed 18 | . 12 3 . 3 Melee 1 | . 1 . . . Guns 6 | . 3 3 . . AOE 11 | . 8 . . 3 Classes Destroyed 8 | . 7 . . 1 Worker 3 | . 3 . . . Builder 3 | . 3 . . . Recycler 1 | . 1 . . . Operator 2 | . 2 . . . Watcher 1 | . 1 . . . Swarmer 5 | . 2 3 . . Grunt 12 | . 10 . . 2 Brawler 1 | . . . . 1 Best Kill Streak 10 | . 10 2 . 3 Combat Bots Only 5 | . 5 2 . 3 Max Kills in Single Turn 3 | . 2 1 . 3 Gunslinging . | . . . . . Exploded 3 | . 2 . . 3 Melee 1 | . 1 . . . Uniques/NPCs Destroyed . | . . . . . Combat | -11 -10 -10 -10 -9 -------- Run | Yrd Mat Min Exi Min Hostile Shots Fired 72 | . 58 14 . . Missed 21 | . 17 4 . . Hits 51 | . 41 10 . . Projectile 51 | . 41 10 . . Damage Taken 857 | . 679 85 . 93 Core 274 | . 151 61 . 62 Absorbed by Shields . | . . . . . Core Remaining (%) 100 | 100 . . . . Volleys Fired 59 | . 47 11 . 1 Largest 2 | . 2 2 . 2 Hottest 80 | . 60 60 . 80 Shots Fired 85 | . 65 19 . 1 Gun 70 | . 51 19 . . Cannon 1 | . . . . 1 Launcher 14 | . 14 . . . Special . | . . . . . Kinetic 39 | . 31 8 . . Thermal 31 | . 20 11 . . Explosive 14 | . 14 . . . Electromagnetic 1 | . . . . 1 Robot Hit Streak 15 | . 15 4 . 2 Robot Miss Streak 4 | . 3 4 . . Penetration Max . | . . . . . Secondary Targets . | . . . . . Shots Hit Robots 54 | . 46 7 . 1 Core Hits 43 | . 34 5 . 4 Critical Kills . | . . . . . Critical Parts Destroyed 1 | . 1 . . . Critical Strikes 1 | . 1 . . . Destroy 1 | . 1 . . . Melee Attacks 8 | . 8 . . . Impact . | . . . . . Slashing 8 | . 8 . . . Piercing . | . . . . . Sneak Attacks 2 | . 2 . . . Combat Hostiles . | . . . . . Follow-up Attacks . | . . . . . Damage Inflicted 1854 | . 1420 68 . 366 Guns 360 | . 292 68 . . Cannons 7 | . . . . 7 Explosions 1334 | . 975 . . 359 Melee 153 | . 153 . . . Ramming . | . . . . . Kinetic 120 | . 97 23 . . Thermal 358 | . 313 45 . . Explosive 857 | . 857 . . . Electromagnetic 366 | . . . . 366 Impact . | . . . . . Slashing 153 | . 153 . . . Piercing . | . . . . . Highest Corruption . | . . . . . Average Corruption . | . . . . . Corruption Purged . | . . . . . Corruption Blocked . | . . . . . Overload Shots . | . . . . . Overflow Damage 111 | . 99 . . 12 Projectiles . | . . . . . Explosions 79 | . 67 . . 12 Melee 32 | . 32 . . . Knockbacks . | . . . . . Impact . | . . . . . Kinetic . | . . . . . Secondary . | . . . . . Self-Inflicted Damage 332 | . 239 . . 93 Shots 7 | . 6 . . 1 Rammed . | . . . . . Targets Rammed . | . . . . . Kicked . | . . . . . Crushed . | . . . . . Highest Temperature 4 | . 4 . . . Average Temperature 2 | . 2 . . . Received Heat Transfer 222 | . 222 . . . Siege Activations . | . . . . . Martial Activations . | . . . . . Shielding Activations . | . . . . . Robots Disrupted . | . . . . . Combat Hostiles . | . . . . . Robots Corrupted . | . . . . . Combat Hostiles . | . . . . . Parts Fried . | . . . . . Impact Corruptions . | . . . . . Robots Melted . | . . . . . Combat Hostiles . | . . . . . Parts Melted 1 | . . 1 . . Heat Transferred 650 | . 550 100 . . Parts Sabotaged . | . . . . . Parts Stolen . | . . . . . Parts Stripped . | . . . . . Power Chain Reactions . | . . . . . Latent Energy Used 200 | . . . . 200 LE Corruption 3 | . . . . 3 Alert | -11 -10 -10 -10 -9 ------- Run | Yrd Mat Min Exi Min Maximum Alert Level 1 | . 1 . . . Low Security (%) 84 | 100 80 100 . . Level 1 15 | . 19 . . . Level 2 . | . . . . . Level 3 . | . . . . . Level 4 . | . . . . . Level 5 . | . . . . . High Security . | . . . . . Max Security . | . . . . . Peak Influence 260 | . 260 112 . . Initial 67 | . . 67 . . Average 107 | . 122 69 . . Influence Increases 712 | . 519 115 . 78 Destroy 0b10 Robot/C 360 | . 240 60 . 60 Destroy 0b10 Robot/NC 50 | . 50 . . . Destroy Leader 92 | . 72 10 . 10 Disable Machine 75 | . 75 . . . Destroy Structure 75 | . 67 . . 8 Lose Combat Pursuer 60 | . 15 45 . . Influence Decreases 644 | . 345 217 72 10 Entered New Map 179 | . . 107 72 . Time Decay 395 | . 285 110 . . Lost Part 70 | . 60 . . 10 Squads Dispatched 4 | . 4 . . . Investigation 2 | . 2 . . . Extermination . | . . . . . Reinforcement 2 | . 2 . . . Assault . | . . . . . Garrison . | . . . . . Intercept . | . . . . . Searches Triggered . | . . . . . Construction Impeded . | . . . . . Haulers Reinforced . | . . . . . Active Scanning Responses . | . . . . . Cargo Convoy Interrupts . | . . . . . Stealth | -11 -10 -10 -10 -9 --------- Run | Yrd Mat Min Exi Min Distress Signals . | . . . . . Communications Jammed . | . . . . . Distress Signals . | . . . . . Times Spotted 31 | . 26 5 . . Peak Tracking Total 6 | . 6 3 . . Tactical Retreats 2 | . 1 1 . . Traps | -11 -10 -10 -10 -9 ------- Run | Yrd Mat Min Exi Min Traps Triggered 3 | . 3 . . . Indirectly . | . . . . . Trap Hack Attempts . | . . . . . Triggered . | . . . . . Disarmed 1 | . 1 . . . Reprogrammed . | . . . . . Reused . | . . . . . Traps Extracted . | . . . . . Installed . | . . . . . Triggered . | . . . . . Machines | -11 -10 -10 -10 -9 ---------- Run | Yrd Mat Min Exi Min Machines Disabled 5 | . 5 . . . Max in Single Turn 2 | . 2 . . . Machines Repaired . | . . . . . Machines Dismantled . | . . . . . Machines Sabotaged . | . . . . . Overloaded Fab Kills . | . . . . . Hacking | -11 -10 -10 -10 -9 --------- Run | Yrd Mat Min Exi Min Machines Accessed 3 | . 1 1 1 . Terminals 2 | . 1 1 . . Fabricators . | . . . . . Repair Stations . | . . . . . Recycling Units . | . . . . . Scanalyzers . | . . . . . Garrison Access . | . . . . . Total Hacks 3 | . 1 1 1 . Successful 2 | . 1 . 1 . Failed 1 | . . 1 . . Catastrophic . | . . . . . Database Lockouts . | . . . . . Manual 3 | . 1 1 1 . Terminals 2 | . 1 1 . . Fabricators . | . . . . . Repair Stations . | . . . . . Recycling Units . | . . . . . Scanalyzers . | . . . . . Garrison Access . | . . . . . Terminal Hacks 2 | . 1 . 1 . Disarm Traps 1 | . 1 . . . Proto ID Catalog 1 | . . . 1 . Fabricator Hacks . | . . . . . Repair Station Hacks . | . . . . . Recycling Unit Hacks . | . . . . . Scanalyzer . | . . . . . Garrison Access Hacks . | . . . . . Unauthorized Hacks . | . . . . . Terminals . | . . . . . Fabricators . | . . . . . Repair Stations . | . . . . . Recycling Units . | . . . . . Scanalyzers . | . . . . . Garrison Access . | . . . . . Data Cores Recovered 1 | . 1 . . . Used . | . . . . . Hacking Detections . | . . . . . Full Trace Events . | . . . . . Feedback Events . | . . . . . Feedback Blocked . | . . . . . Robot Schematics Acquired . | . . . . . Robots Built . | . . . . . Authchips . | . . . . . Time . | . . . . . Total Robot Build Rating . | . . . . . Part Schematics Acquired . | . . . . . Parts Built . | . . . . . Authchips . | . . . . . Time . | . . . . . Total Part Build Rating . | . . . . . Parts Repaired . | . . . . . Time . | . . . . . Parts Recycled . | . . . . . Recycled Matter . | . . . . . Retrieved Matter . | . . . . . Retrieved Components . | . . . . . Parts Scanalyzed . | . . . . . Part Schematics Acquired . | . . . . . Parts Damaged . | . . . . . Bothacking | -11 -10 -10 -10 -9 ------------ Run | Yrd Mat Min Exi Min Used RIF Installer . | . . . . . Robots Hacked . | . . . . . Non-combat . | . . . . . Combat . | . . . . . Robot Hacks Applied . | . . . . . Relay Couplers Released . | . . . . . Fabnet Peak Effective % . | . . . . . Robots Rewired . | . . . . . Allies Hacked . | . . . . . Hacks Repelled . | . . . . . Allies | -11 -10 -10 -10 -9 -------- Run | Yrd Mat Min Exi Min Total Allies . | . . . . . Largest Group . | . . . . . Highest-Rated Group . | . . . . . Highest-Rated Ally . | . . . . . Total Orders . | . . . . . Ally Attacks . | . . . . . Total Damage . | . . . . . Kills . | . . . . . Allies Corrupted . | . . . . . Allies Melted . | . . . . . Intel | -11 -10 -10 -10 -9 ------- Run | Yrd Mat Min Exi Min Active Infowar (turns) . | . . . . . Robot Analysis Total . | . . . . . Derelict Logs Recovered 1 | . . 1 . . Drone Launches . | . . . . . Drone Recoveries . | . . . . . Exploration | -11 -10 -10 -10 -9 ------------- Run | Yrd Mat Min Exi Min Turns Passed 1714 | 73 1093 236 312 . Spaces Moved 1183 | 50 689 164 280 . Core 18 | 18 . . . . Treads 90 | 32 58 . . . Legs . | . . . . . Wheels 1075 | . 631 164 280 . Hover . | . . . . . Flight . | . . . . . Fastest Speed 50 | 50 80 110 110 . Average Speed 110 | 124 107 119 110 . Slowest Speed 160 | 160 160 140 110 . Overloaded Moves . | . . . . . Propulsion Burnouts . | . . . . . Robots Hopped . | . . . . . Potential Cave-ins 2 | . 2 . . . Cave-ins Triggered . | . . . . . Exploration Rate (%) 38 | 3 89 33 60 6 Regions Visited 4 Branch Regions 3 Pre-discovered Areas 1 | . . 1 . . Known Exits Taken . | . . . . . Unknown Exits Taken 4 | 1 1 1 1 . Scrap Searched . | . . . . . Spaces Dug . | . . . . . Terrain Destroyed 80 | . 67 . . 13 Melee . | . . . . . Projectile . | . . . . . AOE 80 | . 67 . . 13 Terrain Rammed . | . . . . . Walls Destroyed . | . . . . . Machines Disabled . | . . . . . Actions | -11 -10 -10 -10 -9 --------- Run | Yrd Mat Min Exi Min Total 1490 | 59 962 185 283 1 Wait 180 | . 175 5 . . Move 1179 | 49 688 163 279 . Hop . | . . . . . Pick Up 32 | 6 21 4 1 . Fast Attach 4 | 4 . . . . Attach 10 | . 9 1 . . Detach . | . . . . . Swap 15 | . 12 1 2 . Drop 3 | . 2 . 1 . Fire 59 | . 47 11 . 1 Melee 8 | . 8 . . . Ram . | . . . . . Kick . | . . . . . Crush . | . . . . . Escape Stasis . | . . . . . Rewire . | . . . . . Trap . | . . . . . Miscellaneous . | . . . . . Route ------- -11/Scrapyard -10/Materials (discovered 4 exits: [*Mat x2] / *Min x2) -10/Mines -10/Exiles -9/Mines History --------- Turn | Location | Event 14 | -11/Scrapyard | Discovered new exit (range 16) 74 | -11/Scrapyard | Entered Materials 308 | -10/Materials | Build established: Mutant 477 | -10/Materials | Discovered new exit (range 11) 692 | -10/Materials | Discovered new exit (range 10) 934 | -10/Materials | Discovered new exit (range 3) 935 | -10/Materials | Discovered new exit (range 13) 948 | -10/Materials | Core integrity fell below 50% 1167 | -10/Materials | Entered Mines 1186 | -10/Mines | Learned location of Mines (-9) 1205 | -10/Mines | Received a Rocket Launcher from a helpful Derelict 1270 | -10/Mines | Core integrity fell below 20% 1398 | -10/Mines | Deemed a non-threat by the Exiles lab entrance 1398 | -10/Mines | Discovered new exit (range 5) 1403 | -10/Mines | Entered Exiles 1431 | -10/Exiles | Met 8R-AWN 1449 | -10/Exiles | Met EX-HEX 1479 | -10/Exiles | Met EX-BIN 1493 | -10/Exiles | Aligned with FarCom system 1494 | -10/Exiles | Given EX-Vault access code 1520 | -10/Exiles | Opened EX-Vault 1526 | -10/Exiles | Found Latent Energy Streamer 1550 | -10/Exiles | Warned to stay clear of 0b10 Research branches 1582 | -10/Exiles | Met EX-DEC 1619 | -10/Exiles | Discovered new exit (range 14) 1715 | -10/Exiles | Left Exiles lab with Latent Energy Streamer 1715 | -10/Exiles | Entered Mines 1715 | -9/Mines | Destroyed self with Latent Energy Streamer Last Messages --------------- EX-BIN: And don't even think about spreading that code around. We're gonna change it right after you leave. Most certainly not to something like 1234 which I did last time as a little joke and some thief managed to sneak in here and steal a few of HEX's prototypes. EX-DEC: Ah I see we have a visitor. One wrong move in here and I'll invert your atomic chain! 01584_ EX-DEC: "Oops, I hope HEX didn't hear that..." 01619_ EXIT=FOUND 01639_ Dropped Datajack. LOCATION=UNKNOWN GOAL=ESCAPE 01715_ Receiving FarCom transmissions... 01715_ B-36 Bruiser destroyed. 01715_ G-34 Mercenary destroyed. 01715_ Heat Sink destroyed. 01715_ Destroyed Heat Sink. Map ----- +----------------------------------------------------+ | ??????????????????????????????? | | ??????????????????????????????? | | ??????????????????????????????? | | ??????????????????????????????? | | ??????????????????????????????? | | ??????????????????????????????? | | ??????????????????????????????? | | ??????????????????????????????? | | ??????????????????????????????? | | ??????????????????????????????? | | ??????????????????????????????? | | ??????????????????????????????? | | ???####???????????????????????? | | ???# ???????????????????????? | | ???# "??????????????????????? | | ???# "??????????????????????? | | ???# "??????????????????????? | | ???# #?????????????????? | | ???# """" #?????????????????? | | ???# """" #?????????????????? | | ???# """" #?????????????????? | | ???# #?????????????????? | | ???# #?????????????????? | | ???# #?????????????????? | | ???# #?????????????????? | | ???# @ #?????????????????? | | ??#; ! #?????????????????? | | ?# ; *%= #?????????????????? | | ?##; %= #?????????????????? | | ??#; = #?????????????????? | | ?? ; %= #?????????????????? | | ?# #;;##;####?????????????????? | | ?#??##??#?????????????????????? | | | | | | | | | | | | | | | | | | | | | | | | | | | | | | | | | | | +----------------------------------------------------+ Best States ------------- Heat Dissipation 35 Energy Generation 10 Energy Capacity 250 Matter Stores 300 Matter Capacity 300 Sight Range 16 Terrain Scan Density 10 Evasion (%) 50 Recoil Reduction 1 Item Schematics ----------------- None Robot Schematics ------------------ None Fabricated ------------ Nothing Repaired ---------- Nothing Alien Tech Used ----------------- None Achievements -------------- None Challenges ------------ None Game ------ Seed ThiefEfficiencyActivator Manual? 0 Play Time 00:11:50 Cumulative 68.1 hours Start 2025.08.04 @ 21:48:40 End 2025.08.04 @ 22:03:48 Sessions 1 Manual Loads 0 Difficulty Rogue Special Mode None Game No. 126 Rogue 126 Adventurer 0 Explorer 0 Win Type - Total 0 Types 0/0/0/0/0/0/0/0/0/0 Lore% 14 Gallery% 38 Achievement% 31 Wizard Run 0 Options --------- Layout 1 ASCII 0 Keyboard 0 Movement Mouse Keybinds 0 Fullscreen 2 Font 32/SmallcapsGlow Map View 50x35 Zoom Use 0% Tactical HUD 1 Map Filters NONE Filters NONE Steam 1 RUN: 2e7403ab-a7b7-4af4-b1d7-82a94f8ecd61